Cogmind - Beta 13 @@@ ROGUE MODE // 2024.04.13 @ 02:47:29 Player: GregoriusTechneticies Result: Destroyed by L-31 Rogue with Katana Performance ------------- Evolutions (0) 0 Regions Visited (4) 800 Robots Destroyed (32) 160 Value Destroyed (277) 277 Prototype IDs (0) 0 Alien Tech Used (0) 0 Bonus (0) 0 TOTAL SCORE: 1237 Bonus ------- None Cogmind --------- Core Integrity 0/250 Matter 300/300 Energy 95/100 System Corruption 0% Temperature Cool (50) Movement Core (200) Ox3 Location -9/Mines Parts ------- > --- POWER (1) -------- (None) > --- PROPULSION (2) --- (None) > --- UTILITY (2) ------ Medium Storage Unit Machine Analyzer > --- WEAPON (2) ------- (None) > --- INVENTORY (10) --- Light Ion Engine Wheel Structural Scanner Visual Processing Unit Improved Terrain Scanner Terrain Scan Processor Seismic Detector Seismic Detector Grenade Launcher Mining Laser Peak State ------------ > --- POWER ------------ Light Ion Engine > --- PROPULSION ------- Wheel Wheel > --- UTILITY ---------- Medium Storage Unit Machine Analyzer > --- WEAPON ----------- Medium Laser Medium Laser > --- INVENTORY -------- Light Ion Engine Wheel Structural Scanner Visual Processing Unit Improved Terrain Scanner Terrain Scan Processor Seismic Detector Seismic Detector Grenade Launcher Mining Laser [Rating: 10] Favorites ----------- Power Light Ion Engine Engine Light Ion Engine Propulsion Wheel Wheel Wheel Utility Medium Storage Unit Device Seismic Detector Storage Medium Storage Unit Processor Machine Analyzer Weapon Medium Laser Energy Gun Medium Laser Build | -11 -10 -10 -10 -9 ------- Run | Yrd Mat Min Exi Min Slots Evolved . | . . . . . Power . | . . . . . Propulsion . | . . . . . Utility . | . . . . . Weapon . | . . . . . Parts Attached 30 | 13 17 . . . Power 8 | 3 5 . . . Engine 8 | 3 5 . . . Core . | . . . . . Reactor . | . . . . . Propulsion 11 | 5 6 . . . Treads . | . . . . . Leg . | . . . . . Wheel 11 | 5 6 . . . Hover . | . . . . . Flight . | . . . . . Utility 7 | 3 4 . . . Device 3 | 1 2 . . . Storage 3 | 2 1 . . . Processor 1 | . 1 . . . Hackware . | . . . . . Protection . | . . . . . Artifact . | . . . . . Weapon 4 | 2 2 . . . Energy Gun 4 | 2 2 . . . Energy Cannon . | . . . . . Ballistic Gun . | . . . . . Ballistic Cannon . | . . . . . Launcher . | . . . . . Special Weapon . | . . . . . Impact Weapon . | . . . . . Slashing Weapon . | . . . . . Piercing Weapon . | . . . . . Special Melee Weapon . | . . . . . Unidentified Prototypes . | . . . . . Parts Lost 5 | . . . . 5 Power 1 | . . . . 1 Propulsion 2 | . . . . 2 Utility . | . . . . . Weapon 2 | . . . . 2 Highest Loss Streak 5 | . . . . 5 To Critical Strikes . | . . . . . Average Slot Usage (%) 99 | . 100 100 100 66 Engine 13 | . 14 14 14 4 Wheel 27 | . 28 28 28 18 Device 5 | . 12 . . . Storage 14 | . 14 14 14 14 Processor 8 | . 1 14 14 14 Energy Gun 27 | . 28 28 28 14 Naked Turns . | . . . . . Heaviest Build 18 | 13 18 17 17 17 Greatest Support 20 | 20 20 20 20 20 Greatest Overweight (x) 4 | 4 . . . 1 Average Overweight (x) . | . . . . . Largest Inventory Capacity 10 | 8 10 10 10 10 Average Capacity 9 | 7 8 10 10 10 Most Carried 10 | 8 10 10 10 10 Average Carried 8 | 4 8 10 10 10 Final Capacity 10 | 8 10 10 10 10 Final Carried 10 | 8 10 10 10 10 Class Distribution -------------------- 89% | Scavenger-Mutant 10% | Mutant Dominant Class ---------------- Scavenger-Mutant | -10/Materials Scavenger-Mutant | -10/Mines Scavenger-Mutant | -10/Exiles Scavenger-Mutant | -9/Mines Resources | -11 -10 -10 -10 -9 ----------- Run | Yrd Mat Min Exi Min Matter Collected 500 | 330 160 . . 10 Remotely . | . . . . . Salvage Created 682 | 263 419 . . . Parts 63 | 27 36 . . . Haulers Intercepted . | . . . . . Recyclers Shooed 4 | 1 3 . . . Parts Field Recycled . | . . . . . Retrieved Matter . | . . . . . Parts Self-Destructed . | . . . . . Prevented . | . . . . . Kills | -11 -10 -10 -10 -9 ------- Run | Yrd Mat Min Exi Min Combat Hostiles Destroyed 8 | . 8 . . . Guns 8 | . 8 . . . Classes Destroyed 8 | 3 5 . . . Worker 6 | 2 4 . . . Builder 3 | . 3 . . . Tunneler 11 | 9 2 . . . Recycler 1 | 1 . . . . Mechanic 1 | . 1 . . . Watcher 2 | . 2 . . . Swarmer 6 | . 6 . . . Grunt 2 | . 2 . . . Best Kill Streak 4 | 3 4 . . . Combat Bots Only 3 | . 3 . . . Max Kills in Single Turn 1 | 1 1 . . . Gunslinging . | . . . . . Exploded . | . . . . . Melee . | . . . . . Uniques/NPCs Destroyed . | . . . . . Combat | -11 -10 -10 -10 -9 -------- Run | Yrd Mat Min Exi Min Hostile Shots Fired 75 | . 51 . . 24 Missed 17 | . 11 . . 6 Damage Taken 787 | . 370 . . 417 Core 262 | . 126 . . 136 Absorbed by Shields . | . . . . . Core Remaining (%) 100 | 100 . . . . Volleys Fired 93 | 26 60 . . 7 Largest 2 | 2 2 . . 2 Hottest 100 | 90 100 . . 100 Shots Fired 176 | 52 114 . . 10 Gun 176 | 52 114 . . 10 Cannon . | . . . . . Launcher . | . . . . . Special . | . . . . . Kinetic . | . . . . . Thermal 176 | 52 114 . . 10 Explosive . | . . . . . Electromagnetic . | . . . . . Robot Hit Streak 11 | 11 9 . . 7 Robot Miss Streak 6 | 2 6 . . 1 Penetration Max . | . . . . . Secondary Targets . | . . . . . Shots Hit Robots 98 | 29 61 . . 8 Core Hits 38 | 13 24 . . 1 Critical Kills . | . . . . . Critical Parts Destroyed . | . . . . . Critical Strikes 7 | 1 5 . . 1 Burn 7 | 1 5 . . 1 Melee Attacks . | . . . . . Impact . | . . . . . Slashing . | . . . . . Piercing . | . . . . . Sneak Attacks . | . . . . . Combat Hostiles . | . . . . . Follow-up Attacks . | . . . . . Damage Inflicted 1230 | 341 788 . . 101 Guns 1230 | 341 788 . . 101 Cannons . | . . . . . Explosions . | . . . . . Melee . | . . . . . Ramming . | . . . . . Kinetic . | . . . . . Thermal 1230 | 341 788 . . 101 Explosive . | . . . . . Electromagnetic . | . . . . . Impact . | . . . . . Slashing . | . . . . . Piercing . | . . . . . Highest Corruption . | . . . . . Average Corruption . | . . . . . Corruption Purged . | . . . . . Corruption Blocked . | . . . . . Overload Shots . | . . . . . Overflow Damage . | . . . . . Projectiles . | . . . . . Explosions . | . . . . . Melee . | . . . . . Knockbacks . | . . . . . Impact . | . . . . . Kinetic . | . . . . . Secondary . | . . . . . Self-Inflicted Damage . | . . . . . Shots . | . . . . . Rammed . | . . . . . Targets Rammed . | . . . . . Kicked . | . . . . . Crushed . | . . . . . Highest Temperature 374 | 110 374 . . 126 Average Temperature 105 | 33 137 . . 56 Received Heat Transfer 153 | . 90 . . 63 Effects 7 | . 7 . . . Shutdowns 1 | . 1 . . . Energy Bleed 3 | . 3 . . . Interference 3 | . 3 . . . Siege Activations . | . . . . . Robots Corrupted . | . . . . . Combat Hostiles . | . . . . . Parts Fried . | . . . . . Impact Corruptions . | . . . . . Robots Melted . | . . . . . Combat Hostiles . | . . . . . Parts Melted 8 | . 8 . . . Heat Transferred 4027 | 1015 2642 . . 370 Parts Sabotaged . | . . . . . Parts Stolen . | . . . . . Parts Stripped . | . . . . . Power Chain Reactions . | . . . . . Alert | -11 -10 -10 -10 -9 ------- Run | Yrd Mat Min Exi Min Peak Influence 298 | 60 298 1 . . Initial 39 | . 39 1 . . Average 104 | 25 157 1 . . Maximum Alert Level 1 | . 1 . . . Low Security (%) 79 | 100 66 100 . 100 Level 1 20 | . 33 . . . Level 2 . | . . . . . Level 3 . | . . . . . Level 4 . | . . . . . Level 5 . | . . . . . High Security . | . . . . . Max Security . | . . . . . Squads Dispatched 1 | . 1 . . . Investigation . | . . . . . Extermination . | . . . . . Reinforcement 1 | . 1 . . . Assault . | . . . . . Garrison . | . . . . . Intercept . | . . . . . Searches Triggered . | . . . . . Construction Impeded . | . . . . . Haulers Reinforced . | . . . . . Active Scanning Responses . | . . . . . Cargo Convoy Interrupts . | . . . . . Stealth | -11 -10 -10 -10 -9 --------- Run | Yrd Mat Min Exi Min Distress Signals 1 | . 1 . . . Communications Jammed . | . . . . . Distress Signals . | . . . . . Times Spotted 26 | . 19 . . 7 Peak Tracking Total 7 | . 5 . . 7 Tactical Retreats . | . . . . . Traps | -11 -10 -10 -10 -9 ------- Run | Yrd Mat Min Exi Min Traps Triggered . | . . . . . Indirectly . | . . . . . Trap Hack Attempts . | . . . . . Triggered . | . . . . . Disarmed . | . . . . . Reprogrammed . | . . . . . Reused . | . . . . . Traps Extracted . | . . . . . Installed . | . . . . . Triggered . | . . . . . Machines | -11 -10 -10 -10 -9 ---------- Run | Yrd Mat Min Exi Min Machines Disabled . | . . . . . Max in Single Turn . | . . . . . Machines Repaired . | . . . . . Machines Dismantled . | . . . . . Machines Sabotaged . | . . . . . Overloaded Fab Kills . | . . . . . Hacking | -11 -10 -10 -10 -9 --------- Run | Yrd Mat Min Exi Min Machines Accessed 6 | . 2 . 4 . Terminals 2 | . 2 . . . Fabricators . | . . . . . Repair Stations . | . . . . . Recycling Units . | . . . . . Scanalyzers . | . . . . . Garrison Access . | . . . . . Total Hacks 11 | . 7 . 4 . Successful 8 | . 4 . 4 . Failed 3 | . 3 . . . Catastrophic . | . . . . . Database Lockouts . | . . . . . Manual 7 | . 7 . . . Terminals 7 | . 7 . . . Fabricators . | . . . . . Repair Stations . | . . . . . Recycling Units . | . . . . . Scanalyzers . | . . . . . Garrison Access . | . . . . . Terminal Hacks 6 | . 2 . 4 . Record 4 | . . . 4 . Terminal Index 1 | . 1 . . . Unreport Threat 1 | . 1 . . . Fabricator Hacks . | . . . . . Repair Station Hacks . | . . . . . Recycling Unit Hacks . | . . . . . Scanalyzer . | . . . . . Garrison Access Hacks . | . . . . . Unauthorized Hacks 2 | . 2 . . . Terminals 2 | . 2 . . . Botnet 2 | . 2 . . . Fabricators . | . . . . . Repair Stations . | . . . . . Recycling Units . | . . . . . Scanalyzers . | . . . . . Garrison Access . | . . . . . Data Cores Recovered . | . . . . . Used . | . . . . . Hacking Detections 2 | . 2 . . . Full Trace Events . | . . . . . Feedback Events . | . . . . . Feedback Blocked . | . . . . . Robot Schematics Acquired . | . . . . . Robots Built . | . . . . . Authchips . | . . . . . Time . | . . . . . Total Robot Build Rating . | . . . . . Part Schematics Acquired . | . . . . . Parts Built . | . . . . . Authchips . | . . . . . Time . | . . . . . Total Part Build Rating . | . . . . . Parts Repaired . | . . . . . Time . | . . . . . Parts Recycled . | . . . . . Recycled Matter . | . . . . . Retrieved Matter . | . . . . . Retrieved Components . | . . . . . Parts Scanalyzed . | . . . . . Part Schematics Acquired . | . . . . . Parts Damaged . | . . . . . Bothacking | -11 -10 -10 -10 -9 ------------ Run | Yrd Mat Min Exi Min Used RIF Installer . | . . . . . Robots Hacked . | . . . . . Non-combat . | . . . . . Combat . | . . . . . Robot Hacks Applied . | . . . . . Relay Couplers Released . | . . . . . Fabnet Peak Effective % . | . . . . . Robots Rewired . | . . . . . Allies Hacked . | . . . . . Hacks Repelled . | . . . . . Allies | -11 -10 -10 -10 -9 -------- Run | Yrd Mat Min Exi Min Total Allies . | . . . . . Largest Group . | . . . . . Highest-Rated Group . | . . . . . Highest-Rated Ally . | . . . . . Total Orders . | . . . . . Ally Attacks . | . . . . . Total Damage . | . . . . . Kills . | . . . . . Allies Corrupted . | . . . . . Allies Melted . | . . . . . Intel | -11 -10 -10 -10 -9 ------- Run | Yrd Mat Min Exi Min Robot Analysis Total . | . . . . . Derelict Logs Recovered . | . . . . . Drone Launches . | . . . . . Drone Recoveries . | . . . . . Exploration | -11 -10 -10 -10 -9 ------------- Run | Yrd Mat Min Exi Min Turns Passed 1389 | 289 513 13 546 28 Spaces Moved 1249 | 178 360 16 683 12 Core 30 | 30 . . . . Treads . | . . . . . Legs . | . . . . . Wheels 1219 | 148 360 16 683 12 Hover . | . . . . . Flight . | . . . . . Fastest Speed 50 | 50 80 80 80 80 Average Speed 82 | 94 80 80 80 83 Slowest Speed 250 | 250 80 80 80 95 Overloaded Moves . | . . . . . Propulsion Burnouts . | . . . . . Robots Hopped . | . . . . . Cave-ins Triggered . | . . . . . Exploration Rate (%) 31 | 7 48 5 91 5 Regions Visited 4 Branch Regions 3 Pre-discovered Areas . | . . . . . Known Exits Taken . | . . . . . Unknown Exits Taken 4 | 1 1 1 1 . Scrap Searched . | . . . . . Spaces Dug . | . . . . . Terrain Destroyed . | . . . . . Melee . | . . . . . Projectile . | . . . . . AOE . | . . . . . Terrain Rammed . | . . . . . Walls Destroyed . | . . . . . Machines Disabled . | . . . . . Actions | -11 -10 -10 -10 -9 --------- Run | Yrd Mat Min Exi Min Total 1445 | 250 478 15 682 20 Wait 12 | . 11 . . 1 Move 1245 | 177 359 15 682 12 Hop . | . . . . . Pick Up 34 | 22 12 . . . Fast Attach 5 | 5 . . . . Attach 4 | 4 . . . . Detach . | . . . . . Swap 21 | 4 17 . . . Drop 31 | 12 19 . . . Fire 93 | 26 60 . . 7 Melee . | . . . . . Ram . | . . . . . Kick . | . . . . . Crush . | . . . . . Escape Stasis . | . . . . . Rewire . | . . . . . Trap . | . . . . . Miscellaneous . | . . . . . Route ------- -11/Scrapyard -10/Materials -10/Mines -10/Exiles -9/Mines History --------- Turn | Location | Event 15 | -11/Scrapyard | Discovered new exit (range 15) 290 | -11/Scrapyard | Entered Materials 310 | -10/Materials | Build established: Scavenger-Mutant 526 | -10/Materials | Core integrity fell below 50% 767 | -10/Materials | Discovered new exit (range 11) 803 | -10/Materials | Entered Mines 812 | -10/Mines | Deemed a non-threat by the Exiles lab entrance 812 | -10/Mines | Discovered new exit (range 5) 816 | -10/Mines | Entered Exiles 816 | -10/Exiles | Found Exiles lab abandoned 1103 | -10/Exiles | Discovered new exit (range 11) 1362 | -10/Exiles | Entered Mines 1387 | -9/Mines | Core integrity fell below 20% 1390 | -9/Mines | Destroyed by L-31 Rogue with Katana Last Messages --------------- 01363_ C-30 ARC: "SECOND INTRUDER APPROACHING. ELIMINATE." 01363_ C-30 ARC bursts open, deploying its payload. 01363_ G-34 Mercenary unfolds itself. 01363_ C-30 ARC bursts open, deploying its payload. 01363_ L-31 Rogue unfolds itself. 01363_ L-31 Rogue suffers critical hit (Burn). 01371_ G-34 Mercenary destroyed. 01372_ Acquired 10 matter. 01374_ RF-6YT(g): "Mission, incomplete...*fzzt*" 01374_ RF-6YT(g) destroyed. 01377_ Lgt. Ion Engine destroyed. 01379_ Med. Laser destroyed. 01379_ Wheel destroyed. 01383_ L-31 Rogue suffers critical hit (Burn). 01389_ L-31 Rogue heat damages Katana. 01389_ Med. Laser destroyed. 01390_ Wheel destroyed. Map ----- +----------------------------------------------------+ | | | | | | | | | | | ?????????????????????????????? | | ?????????????????????????????? | | ?????????????????????????????? | | ?????????????????????????????? | | ?????????????????????????????? | | ?????????????????????????????? | | ?????????????????????????????? | | ?????????????????????????????? | | ?????????????????????????????? | | ?????????????????????????????? | | ?????????????????????????????? | | ?????????????????????????????? | | ?????????????????????????????? | | ?#####???????????????????????? | | ?# ##????????###???????????? | | ?# ######## ##??????????? | | ?# * ####???????? | | ?# g=%= ????? | | ?## g g%[ ????? | | ??# ll ## ####?????????? | | ??# @l##?# ##????????????? | | ??## ##??? "#?????????????? | | ???####????? "%%#????????????? | | ????????????? "%#????????????? | | ?????????????? ##????????????? | | ??????????????##?????????????? | | ?????????????????????????????? | | ?????????????????????????????? | | ?????????????????????????????? | | ?????????????????????????????? | | ?????????????????????????????? | | ?????????????????????????????? | | ?????????????????????????????? | | ?????????????????????????????? | | ?????????????????????????????? | | ?????????????????????????????? | | ?????????????????????????????? | | ?????????????????????????????? | | ?????????????????????????????? | | ?????????????????????????????? | | ?????????????????????????????? | | ?????????????????????????????? | | ?????????????????????????????? | | ?????????????????????????????? | | ?????????????????????????????? | +----------------------------------------------------+ Best States ------------- Heat Dissipation 25 Energy Generation 10 Energy Capacity 250 Matter Stores 300 Matter Capacity 300 Sight Range 16 Terrain Scan Density 10 Evasion (%) 50 Item Schematics ----------------- None Robot Schematics ------------------ None Fabricated ------------ Nothing Alien Tech Used ----------------- None Achievements -------------- None Challenges ------------ None Game ------ Seed LightningSensorScythe Manual? 0 Play Time 00:18:14 Cumulative 26.2 hours Start 2024.04.13 @ 02:22:09 End 2024.04.13 @ 02:47:29 Sessions 1 Manual Loads 0 Difficulty Rogue Special Mode None Game No. 36 Rogue 21 Adventurer 0 Explorer 15 Win Type - Total 0 Types 0/0/0/0/0/0/0/0/0 Lore% 17 Gallery% 28 Achievement% 19 Wizard Run 0 Options --------- Layout 1 ASCII 0 Keyboard 0 Movement Mouse Keybinds 0 Fullscreen 1 Font 24/Smallcaps Map View 50x35 Zoom Use 0% Tactical HUD 1 Map Filters NONE Filters NONE Steam 1 RUN: 276416ad-4c38-4b51-a76a-7ab5d66af984